Workbook

Sheet Lohnüberprüfung
A1: Lohnüberprüfung mit der Lohnleitlinie
A2: Gib bitte bei deiner Lohnstufe deinen Jahrgang in das Gelbe Feld ein. Anschliessend wird die Lohnleitlinie (in rot) angegeben.
A3: Bitte Jahrgang folgendermassen eingeben: 1987 = 87 (ohne 19)
A5: Kindergartenstufe (L9) | E5: Primastrufe (L10)
A7: Mein Jahrgang: | B7: 80 | E7: Mein Jahrgang: | F7: 80
A9: Lohn laut Lohnleitlinie: | B9: =HLOOKUP(B7+1,L9_Daten!B3:AT10,4,FALSE) -> 7331.04 | E9: Lohn laut Lohnleitlinie: | F9: =HLOOKUP(F7+1,L10_Daten!B3:AT10,4,FALSE) -> 7697.592
A10: Lohn +/- 3% | B10: =B9*0.97 -> 7111.1088 | C10: =B9*1.03 -> 7550.9712 | E10: Lohn +/- 3% | F10: =F9*0.97 -> 7466.66424 | G10: =F9*1.03 -> 7928.51976
A14: SHP Primarstufe (L12) | E14: Sekundarstufe (L13)
A16: Mein Jahrgang: | B16: 80 | E16: Mein Jahrgang: | F16: 80
A18: Lohn laut Lohnleitlinie: | B18: =HLOOKUP(B16+1,L12_Daten!B3:AR10,4,FALSE) -> 8275 | E18: Lohn laut Lohnleitlinie: | F18: =HLOOKUP(F16+1,L13_Daten!B3:AT10,4,FALSE) -> 8588.304
A19: Lohn +/- 3% | B19: =B18*0.97 -> 8026.75 | C19: =B18*1.03 -> 8523.25 | E19: Lohn +/- 3% | F19: =F18*0.97 -> 8330.65488 | G19: =F18*1.03 -> 8845.95312
A23: Als Zielbreich wird vom Kanton Obwalden das Lohnband c definiert. Zum Lohnbahn c zählen Löhne, die +3% bzw. -3% Abweichung von der Lohnleitlinie haben.
A25: Was kann ich machen, wenn ich einen tiefen Lohn habe?
A26: Mit der Schulleitung sprechen.
A27: Mit Kolleginnen und Kollegen sprechen.
A28: Wichtig ist, dass auch heikle Gespräche konstrukiv geführt werden.

Sheet L9_Daten
A1: Funktion L9_Kindergarten
A2: Jahre | B2: 1 | C2: 2 | D2: 3 | E2: 4 | F2: 5 | G2: 6 | H2: 7 | I2: 8 | J2: 9 | K2: 10 | L2: 11 | M2: 12 | N2: 13 | O2: 14 | P2: 15 | Q2: 16 | R2: 17 | S2: 18 | T2: 19 | U2: 20 | V2: 21 | W2: 22 | X2: 23 | Y2: 24 | Z2: 25 | AA2: 26 | AB2: 27 | AC2: 28 | AD2: 29 | AE2: 30 | AF2: 31 | AG2: 32 | AH2: 33 | AI2: 34 | AJ2: 35 | AK2: 36 | AL2: 37 | AM2: 38 | AN2: 39 | AO2: 40 | AP2: 41 | AQ2: 42 | AR2: 43 | AS2: 44 | AT2: 45
A3: Jahrgang | B3: 96 | C3: =SUM(B3-1) -> 95 | D3: =SUM(C3-1) -> 94 | E3: 93 | F3: 92 | G3: 91 | H3: 90 | I3: 89 | J3: 88 | K3: 87 | L3: 86 | M3: 85 | N3: 84 | O3: 83 | P3: 82 | Q3: 81 | R3: 80 | S3: 79 | T3: 78 | U3: 77 | V3: 76 | W3: 75 | X3: 74 | Y3: 73 | Z3: 72 | AA3: 71 | AB3: 70 | AC3: 69 | AD3: 68 | AE3: 67 | AF3: 66 | AG3: 65 | AH3: 64 | AI3: 63 | AJ3: 62 | AK3: 61 | AL3: 60 | AM3: 59 | AN3: 58 | AO3: 57 | AP3: 56 | AQ3: 55 | AR3: 54 | AS3: 53 | AT3: 52
A4: Alter | B4: 22 | C4: =SUM(B4+1) -> 23 | D4: =SUM(C4+1) -> 24 | E4: 25 | F4: 26 | G4: 27 | H4: 28 | I4: 29 | J4: 30 | K4: 31 | L4: 32 | M4: 33 | N4: 34 | O4: 35 | P4: 36 | Q4: 37 | R4: 38 | S4: 39 | T4: 40 | U4: 41 | V4: 42 | W4: 43 | X4: 44 | Y4: 45 | Z4: 46 | AA4: 47 | AB4: 48 | AC4: 49 | AD4: 50 | AE4: 51 | AF4: 52 | AG4: 53 | AH4: 54 | AI4: 55 | AJ4: 56 | AK4: 57 | AL4: 58 | AM4: 59 | AN4: 60 | AO4: 61 | AP4: 62 | AQ4: 63 | AR4: 64 | AS4: 65 | AT4: 66
A5: Minimallohn | B5: 5400 | C5: =SUM($B5) -> 5400 | D5: =SUM(C5) -> 5400 | E5: =SUM(D5) -> 5400 | F5: 5400 | G5: 5400 | H5: 5400 | I5: 5400 | J5: 5400 | K5: 5400 | L5: 5400 | M5: 5400 | N5: 5400 | O5: 5400 | P5: 5400 | Q5: 5400 | R5: 5400 | S5: 5400 | T5: 5400 | U5: 5400 | V5: 5400 | W5: 5400 | X5: 5400 | Y5: 5400 | Z5: 5400 | AA5: 5400 | AB5: 5400 | AC5: 5400 | AD5: 5400 | AE5: 5400 | AF5: 5400 | AG5: 5400 | AH5: 5400 | AI5: 5400 | AJ5: 5400 | AK5: 5400 | AL5: 5400 | AM5: 5400 | AN5: 5400 | AO5: 5400 | AP5: 5400 | AQ5: 5400 | AR5: 5400 | AS5: 5400 | AT5: 5400
A6: Lohnleitlinie | B6: 5400 | C6: =PRODUCT(B6+$B6*0.0288) -> 5555.52 | D6: =PRODUCT(C6+$B6*0.0288) -> 5711.04 | E6: 5866.56 | F6: 6022.08 | G6: 6177.6 | H6: 6333.12 | I6: =PRODUCT(H6+$B6*0.0224) -> 6454.08 | J6: =PRODUCT(I6+$B6*0.0224) -> 6575.04 | K6: 6696 | L6: 6816.96 | M6: 6937.92 | N6: 7058.88 | O6: =PRODUCT(N6+$B6*0.0168) -> 7149.6 | P6: =PRODUCT(O6+$B6*0.0168) -> 7240.32 | Q6: 7331.04 | R6: 7421.76 | S6: 7512.48 | T6: 7603.2 | U6: =PRODUCT(T6+$B6*0.008) -> 7646.4 | V6: =PRODUCT(U6+$B6*0.008) -> 7689.6 | W6: 7732.8 | X6: 7776 | Y6: 7819.2 | Z6: 7862.4 | AA6: 7905.6 | AB6: =SUM(AA6) -> 7905.6 | AC6: =SUM(AB6) -> 7905.6 | AD6: 7905.6 | AE6: 7905.6 | AF6: 7905.6 | AG6: 7905.6 | AH6: 7905.6 | AI6: 7905.6 | AJ6: 7905.6 | AK6: 7905.6 | AL6: 7905.6 | AM6: 7905.6 | AN6: 7905.6 | AO6: 7905.6 | AP6: 7905.6 | AQ6: 7905.6 | AR6: 7905.6 | AS6: 7905.6 | AT6: 7905.6
A7: Maximallohn | B7: 8143 | C7: =SUM($B7) -> 8143 | D7: =SUM($B7) -> 8143 | E7: 8143 | F7: 8143 | G7: 8143 | H7: 8143 | I7: 8143 | J7: 8143 | K7: 8143 | L7: 8143 | M7: 8143 | N7: 8143 | O7: 8143 | P7: 8143 | Q7: 8143 | R7: 8143 | S7: 8143 | T7: 8143 | U7: 8143 | V7: 8143 | W7: 8143 | X7: 8143 | Y7: 8143 | Z7: 8143 | AA7: 8143 | AB7: 8143 | AC7: 8143 | AD7: 8143 | AE7: 8143 | AF7: 8143 | AG7: 8143 | AH7: 8143 | AI7: 8143 | AJ7: 8143 | AK7: 8143 | AL7: 8143 | AM7: 8143 | AN7: 8143 | AO7: 8143 | AP7: 8143 | AQ7: 8143 | AR7: 8143 | AS7: 8143 | AT7: 8143
A8: Übergang a/b | B8: =PRODUCT(B6*0.91) -> 4914 | C8: =PRODUCT(C6*0.91) -> 5055.5232 | D8: =PRODUCT(D6*0.91) -> 5197.0464 | E8: 5338.5696 | F8: 5480.0928 | G8: 5621.616 | H8: 5763.1392 | I8: 5873.2128 | J8: 5983.2864 | K8: 6093.36 | L8: 6203.4336 | M8: 6313.5072 | N8: 6423.5808 | O8: 6506.136 | P8: 6588.6912 | Q8: 6671.2464 | R8: 6753.8016 | S8: 6836.3568 | T8: 6918.912 | U8: 6958.224 | V8: 6997.536 | W8: 7036.848 | X8: 7076.16 | Y8: 7115.472 | Z8: 7154.784 | AA8: 7194.096 | AB8: 7194.096 | AC8: 7194.096 | AD8: 7194.096 | AE8: 7194.096 | AF8: 7194.096 | AG8: 7194.096 | AH8: 7194.096 | AI8: 7194.096 | AJ8: 7194.096 | AK8: 7194.096 | AL8: 7194.096 | AM8: 7194.096 | AN8: 7194.096 | AO8: 7194.096 | AP8: 7194.096 | AQ8: 7194.096 | AR8: 7194.096 | AS8: 7194.096 | AT8: 7194.096
A9: Übergang b/c | B9: =PRODUCT(B6*0.97) -> 5238 | C9: =PRODUCT(C6*0.97) -> 5388.8544 | D9: =PRODUCT(D6*0.97) -> 5539.7088 | E9: 5690.5632 | F9: 5841.4176 | G9: 5992.272 | H9: 6143.1264 | I9: 6260.4576 | J9: 6377.7888 | K9: 6495.12 | L9: 6612.4512 | M9: 6729.7824 | N9: 6847.1136 | O9: 6935.112 | P9: 7023.1104 | Q9: 7111.1088 | R9: 7199.1072 | S9: 7287.1056 | T9: 7375.104 | U9: 7417.008 | V9: 7458.912 | W9: 7500.816 | X9: 7542.72 | Y9: 7584.624 | Z9: 7626.528 | AA9: 7668.432 | AB9: 7668.432 | AC9: 7668.432 | AD9: 7668.432 | AE9: 7668.432 | AF9: 7668.432 | AG9: 7668.432 | AH9: 7668.432 | AI9: 7668.432 | AJ9: 7668.432 | AK9: 7668.432 | AL9: 7668.432 | AM9: 7668.432 | AN9: 7668.432 | AO9: 7668.432 | AP9: 7668.432 | AQ9: 7668.432 | AR9: 7668.432 | AS9: 7668.432 | AT9: 7668.432
A10: Übergang c/d | B10: =PRODUCT(B6*1.03) -> 5562 | C10: =PRODUCT(C6*1.03) -> 5722.1856 | D10: =PRODUCT(D6*1.03) -> 5882.3712 | E10: 6042.5568 | F10: 6202.7424 | G10: 6362.928 | H10: 6523.1136 | I10: 6647.7024 | J10: 6772.2912 | K10: 6896.88 | L10: 7021.4688 | M10: 7146.0576 | N10: 7270.6464 | O10: 7364.088 | P10: 7457.5296 | Q10: 7550.9712 | R10: 7644.4128 | S10: 7737.8544 | T10: 7831.296 | U10: 7875.792 | V10: 7920.288 | W10: 7964.784 | X10: 8009.28 | Y10: 8053.776 | Z10: 8098.272 | AA10: 8142.768 | AB10: 8142.768 | AC10: 8142.768 | AD10: 8142.768 | AE10: 8142.768 | AF10: 8142.768 | AG10: 8142.768 | AH10: 8142.768 | AI10: 8142.768 | AJ10: 8142.768 | AK10: 8142.768 | AL10: 8142.768 | AM10: 8142.768 | AN10: 8142.768 | AO10: 8142.768 | AP10: 8142.768 | AQ10: 8142.768 | AR10: 8142.768 | AS10: 8142.768 | AT10: 8142.768
D78: 1

Sheet L10_Daten
A1: Funktion L10_Primarstufe
A2: Jahre | B2: 1 | C2: 2 | D2: 3 | E2: 4 | F2: 5 | G2: 6 | H2: 7 | I2: 8 | J2: 9 | K2: 10 | L2: 11 | M2: 12 | N2: 13 | O2: 14 | P2: 15 | Q2: 16 | R2: 17 | S2: 18 | T2: 19 | U2: 20 | V2: 21 | W2: 22 | X2: 23 | Y2: 24 | Z2: 25 | AA2: 26 | AB2: 27 | AC2: 28 | AD2: 29 | AE2: 30 | AF2: 31 | AG2: 32 | AH2: 33 | AI2: 34 | AJ2: 35 | AK2: 36 | AL2: 37 | AM2: 38 | AN2: 39 | AO2: 40 | AP2: 41 | AQ2: 42 | AR2: 43 | AS2: 44 | AT2: 45
A3: Jahrgang | B3: 96 | C3: =SUM(B3-1) -> 95 | D3: =SUM(C3-1) -> 94 | E3: 93 | F3: 92 | G3: 91 | H3: 90 | I3: 89 | J3: 88 | K3: 87 | L3: 86 | M3: 85 | N3: 84 | O3: 83 | P3: 82 | Q3: 81 | R3: 80 | S3: 79 | T3: 78 | U3: 77 | V3: 76 | W3: 75 | X3: 74 | Y3: 73 | Z3: 72 | AA3: 71 | AB3: 70 | AC3: 69 | AD3: 68 | AE3: 67 | AF3: 66 | AG3: 65 | AH3: 64 | AI3: 63 | AJ3: 62 | AK3: 61 | AL3: 60 | AM3: 59 | AN3: 58 | AO3: 57 | AP3: 56 | AQ3: 55 | AR3: 54 | AS3: 53 | AT3: 52
A4: Alter | B4: 22 | C4: =SUM(B4+1) -> 23 | D4: =SUM(C4+1) -> 24 | E4: 25 | F4: 26 | G4: 27 | H4: 28 | I4: 29 | J4: 30 | K4: 31 | L4: 32 | M4: 33 | N4: 34 | O4: 35 | P4: 36 | Q4: 37 | R4: 38 | S4: 39 | T4: 40 | U4: 41 | V4: 42 | W4: 43 | X4: 44 | Y4: 45 | Z4: 46 | AA4: 47 | AB4: 48 | AC4: 49 | AD4: 50 | AE4: 51 | AF4: 52 | AG4: 53 | AH4: 54 | AI4: 55 | AJ4: 56 | AK4: 57 | AL4: 58 | AM4: 59 | AN4: 60 | AO4: 61 | AP4: 62 | AQ4: 63 | AR4: 64 | AS4: 65 | AT4: 66
A5: Minimallohn | B5: 5670 | C5: =SUM($B5) -> 5670 | D5: =SUM(C5) -> 5670 | E5: =SUM(D5) -> 5670 | F5: 5670 | G5: 5670 | H5: 5670 | I5: 5670 | J5: 5670 | K5: 5670 | L5: 5670 | M5: 5670 | N5: 5670 | O5: 5670 | P5: 5670 | Q5: 5670 | R5: 5670 | S5: 5670 | T5: 5670 | U5: 5670 | V5: 5670 | W5: 5670 | X5: 5670 | Y5: 5670 | Z5: 5670 | AA5: 5670 | AB5: 5670 | AC5: 5670 | AD5: 5670 | AE5: 5670 | AF5: 5670 | AG5: 5670 | AH5: 5670 | AI5: 5670 | AJ5: 5670 | AK5: 5670 | AL5: 5670 | AM5: 5670 | AN5: 5670 | AO5: 5670 | AP5: 5670 | AQ5: 5670 | AR5: 5670 | AS5: 5670 | AT5: 5670
A6: Lohnleitlinie | B6: 5670 | C6: =PRODUCT(B6+$B6*0.0288) -> 5833.296 | D6: =PRODUCT(C6+$B6*0.0288) -> 5996.592 | E6: 6159.888 | F6: 6323.184 | G6: 6486.48 | H6: 6649.776 | I6: =PRODUCT(H6+$B6*0.0224) -> 6776.784 | J6: =PRODUCT(I6+$B6*0.0224) -> 6903.792 | K6: 7030.8 | L6: 7157.808 | M6: 7284.816 | N6: 7411.824 | O6: =PRODUCT(N6+$B6*0.0168) -> 7507.08 | P6: =PRODUCT(O6+$B6*0.0168) -> 7602.336 | Q6: 7697.592 | R6: 7792.848 | S6: 7888.104 | T6: 7983.36 | U6: =PRODUCT(T6+$B6*0.008) -> 8028.72 | V6: =PRODUCT(U6+$B6*0.008) -> 8074.08 | W6: 8119.44 | X6: 8164.8 | Y6: 8210.16 | Z6: 8255.52 | AA6: 8300.88 | AB6: =SUM(AA6) -> 8300.88 | AC6: =SUM(AB6) -> 8300.88 | AD6: 8300.88 | AE6: 8300.88 | AF6: 8300.88 | AG6: 8300.88 | AH6: 8300.88 | AI6: 8300.88 | AJ6: 8300.88 | AK6: 8300.88 | AL6: 8300.88 | AM6: 8300.88 | AN6: 8300.88 | AO6: 8300.88 | AP6: 8300.88 | AQ6: 8300.88 | AR6: 8300.88 | AS6: 8300.88 | AT6: 8300.88
A7: Maximallohn | B7: 8550 | C7: =SUM($B7) -> 8550 | D7: =SUM($B7) -> 8550 | E7: 8550 | F7: 8550 | G7: 8550 | H7: 8550 | I7: 8550 | J7: 8550 | K7: 8550 | L7: 8550 | M7: 8550 | N7: 8550 | O7: 8550 | P7: 8550 | Q7: 8550 | R7: 8550 | S7: 8550 | T7: 8550 | U7: 8550 | V7: 8550 | W7: 8550 | X7: 8550 | Y7: 8550 | Z7: 8550 | AA7: 8550 | AB7: 8550 | AC7: 8550 | AD7: 8550 | AE7: 8550 | AF7: 8550 | AG7: 8550 | AH7: 8550 | AI7: 8550 | AJ7: 8550 | AK7: 8550 | AL7: 8550 | AM7: 8550 | AN7: 8550 | AO7: 8550 | AP7: 8550 | AQ7: 8550 | AR7: 8550 | AS7: 8550 | AT7: 8550
A8: Übergang a/b | B8: =PRODUCT(B6*0.91) -> 5159.7 | C8: =PRODUCT(C6*0.91) -> 5308.29936 | D8: 5456.89872 | E8: 5605.49808 | F8: 5754.09744 | G8: 5902.6968 | H8: 6051.29616 | I8: 6166.87344 | J8: 6282.45072 | K8: 6398.028 | L8: 6513.60528 | M8: 6629.18256 | N8: 6744.75984 | O8: 6831.4428 | P8: 6918.12576 | Q8: 7004.80872 | R8: 7091.49168 | S8: 7178.17464 | T8: 7264.8576 | U8: 7306.1352 | V8: 7347.4128 | W8: 7388.6904 | X8: 7429.968 | Y8: 7471.2456 | Z8: 7512.5232 | AA8: 7553.8008 | AB8: 7553.8008 | AC8: 7553.8008 | AD8: 7553.8008 | AE8: 7553.8008 | AF8: 7553.8008 | AG8: 7553.8008 | AH8: 7553.8008 | AI8: 7553.8008 | AJ8: 7553.8008 | AK8: 7553.8008 | AL8: 7553.8008 | AM8: 7553.8008 | AN8: 7553.8008 | AO8: 7553.8008 | AP8: 7553.8008 | AQ8: 7553.8008 | AR8: 7553.8008 | AS8: 7553.8008 | AT8: 7553.8008
A9: Übergang b/c | B9: =PRODUCT(B6*0.97) -> 5499.9 | C9: =PRODUCT(C6*0.97) -> 5658.29712 | D9: 5816.69424 | E9: 5975.09136 | F9: 6133.48848 | G9: 6291.8856 | H9: 6450.28272 | I9: 6573.48048 | J9: 6696.67824 | K9: 6819.876 | L9: 6943.07376 | M9: 7066.27152 | N9: 7189.46928 | O9: 7281.8676 | P9: 7374.26592 | Q9: 7466.66424 | R9: 7559.06256 | S9: 7651.46088 | T9: 7743.8592 | U9: 7787.8584 | V9: 7831.8576 | W9: 7875.8568 | X9: 7919.856 | Y9: 7963.8552 | Z9: 8007.8544 | AA9: 8051.8536 | AB9: 8051.8536 | AC9: 8051.8536 | AD9: 8051.8536 | AE9: 8051.8536 | AF9: 8051.8536 | AG9: 8051.8536 | AH9: 8051.8536 | AI9: 8051.8536 | AJ9: 8051.8536 | AK9: 8051.8536 | AL9: 8051.8536 | AM9: 8051.8536 | AN9: 8051.8536 | AO9: 8051.8536 | AP9: 8051.8536 | AQ9: 8051.8536 | AR9: 8051.8536 | AS9: 8051.8536 | AT9: 8051.8536
A10: Übergang c/d | B10: =PRODUCT(B6*1.03) -> 5840.1 | C10: =PRODUCT(C6*1.03) -> 6008.29488 | D10: 6176.48976 | E10: 6344.68464 | F10: 6512.87952 | G10: 6681.0744 | H10: 6849.26928 | I10: 6980.08752 | J10: 7110.90576 | K10: 7241.724 | L10: 7372.54224 | M10: 7503.36048 | N10: 7634.17872 | O10: 7732.2924 | P10: 7830.40608 | Q10: 7928.51976 | R10: 8026.63344 | S10: 8124.74712 | T10: 8222.8608 | U10: 8269.5816 | V10: 8316.3024 | W10: 8363.0232 | X10: 8409.744 | Y10: 8456.4648 | Z10: 8503.1856 | AA10: 8549.9064 | AB10: 8549.9064 | AC10: 8549.9064 | AD10: 8549.9064 | AE10: 8549.9064 | AF10: 8549.9064 | AG10: 8549.9064 | AH10: 8549.9064 | AI10: 8549.9064 | AJ10: 8549.9064 | AK10: 8549.9064 | AL10: 8549.9064 | AM10: 8549.9064 | AN10: 8549.9064 | AO10: 8549.9064 | AP10: 8549.9064 | AQ10: 8549.9064 | AR10: 8549.9064 | AS10: 8549.9064 | AT10: 8549.9064

Sheet L12_Daten
A1: Funktion L12_SHP Primarstufe
A2: Jahre | B2: 1 | C2: 2 | D2: 3 | E2: 4 | F2: 5 | G2: 6 | H2: 7 | I2: 8 | J2: 9 | K2: 10 | L2: 11 | M2: 12 | N2: 13 | O2: 14 | P2: 15 | Q2: 16 | R2: 17 | S2: 18 | T2: 19 | U2: 20 | V2: 21 | W2: 22 | X2: 23 | Y2: 24 | Z2: 25 | AA2: 26 | AB2: 27 | AC2: 28 | AD2: 29 | AE2: 30 | AF2: 31 | AG2: 32 | AH2: 33 | AI2: 34 | AJ2: 35 | AK2: 36 | AL2: 37 | AM2: 38 | AN2: 39 | AO2: 40 | AP2: 41 | AQ2: 42 | AR2: 43
A3: Jahrgang | B3: 94 | C3: =SUM(B3-1) -> 93 | D3: =SUM(C3-1) -> 92 | E3: 91 | F3: 90 | G3: 89 | H3: 88 | I3: 87 | J3: 86 | K3: 85 | L3: 84 | M3: 83 | N3: 82 | O3: 81 | P3: 80 | Q3: 79 | R3: 78 | S3: 77 | T3: 76 | U3: 75 | V3: 74 | W3: 73 | X3: 72 | Y3: 71 | Z3: 70 | AA3: 69 | AB3: 68 | AC3: 67 | AD3: 66 | AE3: 65 | AF3: 64 | AG3: 63 | AH3: 62 | AI3: 61 | AJ3: 60 | AK3: 59 | AL3: 58 | AM3: 57 | AN3: 56 | AO3: 55 | AP3: 54 | AQ3: 53 | AR3: 52
A4: Alter | B4: 24 | C4: =SUM(B4+1) -> 25 | D4: =SUM(C4+1) -> 26 | E4: 27 | F4: 28 | G4: 29 | H4: 30 | I4: 31 | J4: 32 | K4: 33 | L4: 34 | M4: 35 | N4: 36 | O4: 37 | P4: 38 | Q4: 39 | R4: 40 | S4: 41 | T4: 42 | U4: 43 | V4: 44 | W4: 45 | X4: 46 | Y4: 47 | Z4: 48 | AA4: 49 | AB4: 50 | AC4: 51 | AD4: 52 | AE4: 53 | AF4: 54 | AG4: 55 | AH4: 56 | AI4: 57 | AJ4: 58 | AK4: 59 | AL4: 60 | AM4: 61 | AN4: 62 | AO4: 63 | AP4: 64 | AQ4: 65 | AR4: 66
A5: Minimallohn | B5: 6250 | C5: =SUM($B5) -> 6250 | D5: =SUM(C5) -> 6250 | E5: =SUM(D5) -> 6250 | F5: 6250 | G5: 6250 | H5: 6250 | I5: 6250 | J5: 6250 | K5: 6250 | L5: 6250 | M5: 6250 | N5: 6250 | O5: 6250 | P5: 6250 | Q5: 6250 | R5: 6250 | S5: 6250 | T5: 6250 | U5: 6250 | V5: 6250 | W5: 6250 | X5: 6250 | Y5: 6250 | Z5: 6250 | AA5: 6250 | AB5: 6250 | AC5: 6250 | AD5: 6250 | AE5: 6250 | AF5: 6250 | AG5: 6250 | AH5: 6250 | AI5: 6250 | AJ5: 6250 | AK5: 6250 | AL5: 6250 | AM5: 6250 | AN5: 6250 | AO5: 6250 | AP5: 6250 | AQ5: 6250 | AR5: 6250
A6: Lohnleitlinie | B6: 6250 | C6: =PRODUCT(B6+$B6*0.0288) -> 6430 | D6: =PRODUCT(C6+$B6*0.0288) -> 6610 | E6: 6790 | F6: 6970 | G6: 7150 | H6: 7330 | I6: =PRODUCT(H6+$B6*0.0224) -> 7470 | J6: =PRODUCT(I6+$B6*0.0224) -> 7610 | K6: 7750 | L6: 7890 | M6: 8030 | N6: 8170 | O6: =PRODUCT(N6+$B6*0.0168) -> 8275 | P6: =PRODUCT(O6+$B6*0.0168) -> 8380 | Q6: 8485 | R6: 8590 | S6: 8695 | T6: 8800 | U6: =PRODUCT(T6+$B6*0.008) -> 8850 | V6: =PRODUCT(U6+$B6*0.008) -> 8900 | W6: 8950 | X6: 9000 | Y6: 9050 | Z6: 9100 | AA6: 9150 | AB6: =SUM(AA6) -> 9150 | AC6: =SUM(AB6) -> 9150 | AD6: 9150 | AE6: 9150 | AF6: 9150 | AG6: 9150 | AH6: 9150 | AI6: 9150 | AJ6: 9150 | AK6: 9150 | AL6: 9150 | AM6: 9150 | AN6: 9150 | AO6: 9150 | AP6: 9150 | AQ6: 9150 | AR6: 9150
A7: Maximallohn | B7: 9424 | C7: =SUM($B7) -> 9424 | D7: =SUM($B7) -> 9424 | E7: 9424 | F7: 9424 | G7: 9424 | H7: 9424 | I7: 9424 | J7: 9424 | K7: 9424 | L7: 9424 | M7: 9424 | N7: 9424 | O7: 9424 | P7: 9424 | Q7: 9424 | R7: 9424 | S7: 9424 | T7: 9424 | U7: 9424 | V7: 9424 | W7: 9424 | X7: 9424 | Y7: 9424 | Z7: 9424 | AA7: 9424 | AB7: 9424 | AC7: 9424 | AD7: 9424 | AE7: 9424 | AF7: 9424 | AG7: 9424 | AH7: 9424 | AI7: 9424 | AJ7: 9424 | AK7: 9424 | AL7: 9424 | AM7: 9424 | AN7: 9424 | AO7: 9424 | AP7: 9424 | AQ7: 9424 | AR7: 9424
A8: Übergang a/b | B8: =PRODUCT(B6*0.91) -> 5687.5 | C8: =PRODUCT(C6*0.91) -> 5851.3 | D8: 6015.1 | E8: 6178.9 | F8: 6342.7 | G8: 6506.5 | H8: 6670.3 | I8: 6797.7 | J8: 6925.1 | K8: 7052.5 | L8: 7179.9 | M8: 7307.3 | N8: 7434.7 | O8: 7530.25 | P8: 7625.8 | Q8: 7721.35 | R8: 7816.9 | S8: 7912.45 | T8: 8008 | U8: 8053.5 | V8: 8099 | W8: 8144.5 | X8: 8190 | Y8: 8235.5 | Z8: 8281 | AA8: 8326.5 | AB8: 8326.5 | AC8: 8326.5 | AD8: 8326.5 | AE8: 8326.5 | AF8: 8326.5 | AG8: 8326.5 | AH8: 8326.5 | AI8: 8326.5 | AJ8: 8326.5 | AK8: 8326.5 | AL8: 8326.5 | AM8: 8326.5 | AN8: 8326.5 | AO8: 8326.5 | AP8: 8326.5 | AQ8: 8326.5 | AR8: 8326.5
A9: Übergang b/c | B9: =PRODUCT(B6*0.97) -> 6062.5 | C9: =PRODUCT(C6*0.97) -> 6237.1 | D9: 6411.7 | E9: 6586.3 | F9: 6760.9 | G9: 6935.5 | H9: 7110.1 | I9: 7245.9 | J9: 7381.7 | K9: 7517.5 | L9: 7653.3 | M9: 7789.1 | N9: 7924.9 | O9: 8026.75 | P9: 8128.6 | Q9: 8230.45 | R9: 8332.3 | S9: 8434.15 | T9: 8536 | U9: 8584.5 | V9: 8633 | W9: 8681.5 | X9: 8730 | Y9: 8778.5 | Z9: 8827 | AA9: 8875.5 | AB9: 8875.5 | AC9: 8875.5 | AD9: 8875.5 | AE9: 8875.5 | AF9: 8875.5 | AG9: 8875.5 | AH9: 8875.5 | AI9: 8875.5 | AJ9: 8875.5 | AK9: 8875.5 | AL9: 8875.5 | AM9: 8875.5 | AN9: 8875.5 | AO9: 8875.5 | AP9: 8875.5 | AQ9: 8875.5 | AR9: 8875.5
A10: Übergang c/d | B10: =PRODUCT(B6*1.03) -> 6437.5 | C10: =PRODUCT(C6*1.03) -> 6622.9 | D10: 6808.3 | E10: 6993.7 | F10: 7179.1 | G10: 7364.5 | H10: 7549.9 | I10: 7694.1 | J10: 7838.3 | K10: 7982.5 | L10: 8126.7 | M10: 8270.9 | N10: 8415.1 | O10: 8523.25 | P10: 8631.4 | Q10: 8739.55 | R10: 8847.7 | S10: 8955.85 | T10: 9064 | U10: 9115.5 | V10: 9167 | W10: 9218.5 | X10: 9270 | Y10: 9321.5 | Z10: 9373 | AA10: 9424.5 | AB10: 9424.5 | AC10: 9424.5 | AD10: 9424.5 | AE10: 9424.5 | AF10: 9424.5 | AG10: 9424.5 | AH10: 9424.5 | AI10: 9424.5 | AJ10: 9424.5 | AK10: 9424.5 | AL10: 9424.5 | AM10: 9424.5 | AN10: 9424.5 | AO10: 9424.5 | AP10: 9424.5 | AQ10: 9424.5 | AR10: 9424.5

Sheet L13_Daten
A1: Funktion L13_Sekundarstufe (inkl. SHP Sekundarstufe)
A2: Jahre | B2: 1 | C2: 2 | D2: 3 | E2: 4 | F2: 5 | G2: 6 | H2: 7 | I2: 8 | J2: 9 | K2: 10 | L2: 11 | M2: 12 | N2: 13 | O2: 14 | P2: 15 | Q2: 16 | R2: 17 | S2: 18 | T2: 19 | U2: 20 | V2: 21 | W2: 22 | X2: 23 | Y2: 24 | Z2: 25 | AA2: 26 | AB2: 27 | AC2: 28 | AD2: 29 | AE2: 30 | AF2: 31 | AG2: 32 | AH2: 33 | AI2: 34 | AJ2: 35 | AK2: 36 | AL2: 37 | AM2: 38 | AN2: 39 | AO2: 40 | AP2: 41 | AQ2: 42 | AR2: 43 | AS2: 44 | AT2: 45
A3: Jahrgang | B3: 93 | C3: =SUM(B3-1) -> 92 | D3: =SUM(C3-1) -> 91 | E3: 90 | F3: 89 | G3: 88 | H3: 87 | I3: 86 | J3: 85 | K3: 84 | L3: 83 | M3: 82 | N3: 81 | O3: 80 | P3: 79 | Q3: 78 | R3: 77 | S3: 76 | T3: 75 | U3: 74 | V3: 73 | W3: 72 | X3: 71 | Y3: 70 | Z3: 69 | AA3: 68 | AB3: 67 | AC3: 66 | AD3: 65 | AE3: 64 | AF3: 63 | AG3: 62 | AH3: 61 | AI3: 60 | AJ3: 59 | AK3: 58 | AL3: 57 | AM3: 56 | AN3: 55 | AO3: 54 | AP3: 53 | AQ3: 52 | AR3: 51 | AS3: 50 | AT3: 49
A4: Alter | B4: 25 | C4: =SUM(B4+1) -> 26 | D4: =SUM(C4+1) -> 27 | E4: 28 | F4: 29 | G4: 30 | H4: 31 | I4: 32 | J4: 33 | K4: 34 | L4: 35 | M4: 36 | N4: 37 | O4: 38 | P4: 39 | Q4: 40 | R4: 41 | S4: 42 | T4: 43 | U4: 44 | V4: 45 | W4: 46 | X4: 47 | Y4: 48 | Z4: 49 | AA4: 50 | AB4: 51 | AC4: 52 | AD4: 53 | AE4: 54 | AF4: 55 | AG4: 56 | AH4: 57 | AI4: 58 | AJ4: 59 | AK4: 60 | AL4: 61 | AM4: 62 | AN4: 63 | AO4: 64 | AP4: 65 | AQ4: 66 | AR4: 67 | AS4: 68 | AT4: 69
A5: Minimallohn | B5: 6570 | C5: =SUM($B5) -> 6570 | D5: =SUM(C5) -> 6570 | E5: =SUM(D5) -> 6570 | F5: 6570 | G5: 6570 | H5: 6570 | I5: 6570 | J5: 6570 | K5: 6570 | L5: 6570 | M5: 6570 | N5: 6570 | O5: 6570 | P5: 6570 | Q5: 6570 | R5: 6570 | S5: 6570 | T5: 6570 | U5: 6570 | V5: 6570 | W5: 6570 | X5: 6570 | Y5: 6570 | Z5: 6570 | AA5: 6570 | AB5: 6570 | AC5: 6570 | AD5: 6570 | AE5: 6570 | AF5: 6570 | AG5: 6570 | AH5: 6570 | AI5: 6570 | AJ5: 6570 | AK5: 6570 | AL5: 6570 | AM5: 6570 | AN5: 6570 | AO5: 6570 | AP5: 6570 | AQ5: 6570 | AR5: 6570 | AS5: 6570 | AT5: 6570
A6: Lohnleitlinie | B6: 6570 | C6: =PRODUCT(B6+$B6*0.0288) -> 6759.216 | D6: =PRODUCT(C6+$B6*0.0288) -> 6948.432 | E6: 7137.648 | F6: 7326.864 | G6: 7516.08 | H6: 7705.296 | I6: =PRODUCT(H6+$B6*0.0224) -> 7852.464 | J6: =PRODUCT(I6+$B6*0.0224) -> 7999.632 | K6: 8146.8 | L6: 8293.968 | M6: 8441.136 | N6: 8588.304 | O6: =PRODUCT(N6+$B6*0.0168) -> 8698.68 | P6: =PRODUCT(O6+$B6*0.0168) -> 8809.056 | Q6: 8919.432 | R6: 9029.808 | S6: 9140.184 | T6: 9250.56 | U6: =PRODUCT(T6+$B6*0.008) -> 9303.12 | V6: =PRODUCT(U6+$B6*0.008) -> 9355.68 | W6: 9408.24 | X6: 9460.8 | Y6: 9513.36 | Z6: 9565.92 | AA6: 9618.48 | AB6: =SUM(AA6) -> 9618.48 | AC6: =SUM(AB6) -> 9618.48 | AD6: 9618.48 | AE6: 9618.48 | AF6: 9618.48 | AG6: 9618.48 | AH6: 9618.48 | AI6: 9618.48 | AJ6: 9618.48 | AK6: 9618.48 | AL6: 9618.48 | AM6: 9618.48 | AN6: 9618.48 | AO6: 9618.48 | AP6: 9618.48 | AQ6: 9618.48 | AR6: 9618.48 | AS6: 9618.48 | AT6: 9618.48
A7: Maximallohn | B7: 9907 | C7: =SUM($B7) -> 9907 | D7: =SUM($B7) -> 9907 | E7: 9907 | F7: 9907 | G7: 9907 | H7: 9907 | I7: 9907 | J7: 9907 | K7: 9907 | L7: 9907 | M7: 9907 | N7: 9907 | O7: 9907 | P7: 9907 | Q7: 9907 | R7: 9907 | S7: 9907 | T7: 9907 | U7: 9907 | V7: 9907 | W7: 9907 | X7: 9907 | Y7: 9907 | Z7: 9907 | AA7: 9907 | AB7: 9907 | AC7: 9907 | AD7: 9907 | AE7: 9907 | AF7: 9907 | AG7: 9907 | AH7: 9907 | AI7: 9907 | AJ7: 9907 | AK7: 9907 | AL7: 9907 | AM7: 9907 | AN7: 9907 | AO7: 9907 | AP7: 9907 | AQ7: 9907 | AR7: 9907 | AS7: 9907 | AT7: 9907
A8: Übergang a/b | B8: =PRODUCT(B6*0.91) -> 5978.7 | C8: =PRODUCT(C6*0.91) -> 6150.88656 | D8: 6323.07312 | E8: 6495.25968 | F8: 6667.44624 | G8: 6839.6328 | H8: 7011.81936 | I8: 7145.74224 | J8: 7279.66512 | K8: 7413.588 | L8: 7547.51088 | M8: 7681.43376 | N8: 7815.35664 | O8: 7915.7988 | P8: 8016.24096 | Q8: 8116.68312 | R8: 8217.12528 | S8: 8317.56744 | T8: 8418.0096 | U8: 8465.8392 | V8: 8513.6688 | W8: 8561.4984 | X8: 8609.328 | Y8: 8657.1576 | Z8: 8704.9872 | AA8: 8752.8168 | AB8: 8752.8168 | AC8: 8752.8168 | AD8: 8752.8168 | AE8: 8752.8168 | AF8: 8752.8168 | AG8: 8752.8168 | AH8: 8752.8168 | AI8: 8752.8168 | AJ8: 8752.8168 | AK8: 8752.8168 | AL8: 8752.8168 | AM8: 8752.8168 | AN8: 8752.8168 | AO8: 8752.8168 | AP8: 8752.8168 | AQ8: 8752.8168 | AR8: 8752.8168 | AS8: 8752.8168 | AT8: 8752.8168
A9: Übergang b/c | B9: =PRODUCT(B6*0.97) -> 6372.9 | C9: =PRODUCT(C6*0.97) -> 6556.43952 | D9: 6739.97904 | E9: 6923.51856 | F9: 7107.05808 | G9: 7290.5976 | H9: 7474.13712 | I9: 7616.89008 | J9: 7759.64304 | K9: 7902.396 | L9: 8045.14896 | M9: 8187.90192 | N9: 8330.65488 | O9: 8437.7196 | P9: 8544.78432 | Q9: 8651.84904 | R9: 8758.91376 | S9: 8865.97848 | T9: 8973.0432 | U9: 9024.0264 | V9: 9075.0096 | W9: 9125.9928 | X9: 9176.976 | Y9: 9227.9592 | Z9: 9278.9424 | AA9: 9329.9256 | AB9: 9329.9256 | AC9: 9329.9256 | AD9: 9329.9256 | AE9: 9329.9256 | AF9: 9329.9256 | AG9: 9329.9256 | AH9: 9329.9256 | AI9: 9329.9256 | AJ9: 9329.9256 | AK9: 9329.9256 | AL9: 9329.9256 | AM9: 9329.9256 | AN9: 9329.9256 | AO9: 9329.9256 | AP9: 9329.9256 | AQ9: 9329.9256 | AR9: 9329.9256 | AS9: 9329.9256 | AT9: 9329.9256
A10: Übergang c/d | B10: =PRODUCT(B6*1.03) -> 6767.1 | C10: =PRODUCT(C6*1.03) -> 6961.99248 | D10: 7156.88496 | E10: 7351.77744 | F10: 7546.66992 | G10: 7741.5624 | H10: 7936.45488 | I10: 8088.03792 | J10: 8239.62096 | K10: 8391.204 | L10: 8542.78704 | M10: 8694.37008 | N10: 8845.95312 | O10: 8959.6404 | P10: 9073.32768 | Q10: 9187.01496 | R10: 9300.70224 | S10: 9414.38952 | T10: 9528.0768 | U10: 9582.2136 | V10: 9636.3504 | W10: 9690.4872 | X10: 9744.624 | Y10: 9798.7608 | Z10: 9852.8976 | AA10: 9907.0344 | AB10: 9907.0344 | AC10: 9907.0344 | AD10: 9907.0344 | AE10: 9907.0344 | AF10: 9907.0344 | AG10: 9907.0344 | AH10: 9907.0344 | AI10: 9907.0344 | AJ10: 9907.0344 | AK10: 9907.0344 | AL10: 9907.0344 | AM10: 9907.0344 | AN10: 9907.0344 | AO10: 9907.0344 | AP10: 9907.0344 | AQ10: 9907.0344 | AR10: 9907.0344 | AS10: 9907.0344 | AT10: 9907.0344
D195: 88
F198: 0.03 | G198: =D198*0.97 -> 0
F199: -0.03 | G199: =D198*1.03 -> 0
B204: Jahrgang
